Cogmind - Beta 15 @@@ ROGUE MODE // 2025.05.10 @ 17:36:59 Player: LustLizard Result: Destroyed by D-53 Grenadier with Mini Grenade Launcher Performance ------------- Evolutions (0) 0 Regions Visited (2) 400 Robots Destroyed (23) 115 Value Destroyed (492) 492 Prototype IDs (0) 0 Alien Tech Used (0) 0 Bonus (0) 0 TOTAL SCORE: 1007 Bonus ------- None Cogmind --------- Core Integrity 0/250 Matter 270/300 Energy 100/100 System Corruption 0% Temperature Cool (0) Movement Core (350) Ox6 Location -10/Mines Parts ------- > --- POWER (1) -------- (None) > --- PROPULSION (2) --- (None) > --- UTILITY (2) ------ Large Storage Unit Targeting Computer > --- WEAPON (2) ------- (None) > --- INVENTORY (15) --- Ion Engine Aluminum Leg Aluminum Leg Aluminum Leg Aluminum Leg Heat Sink Medium Storage Unit Medium Storage Unit Large Storage Unit Assault Rifle Light Assault Rifle Light Assault Rifle Peak State ------------ > --- POWER ------------ Ion Engine > --- PROPULSION ------- Light Treads Wheel > --- UTILITY ---------- Large Storage Unit Utility Shielding > --- WEAPON ----------- Small Laser Light Assault Rifle > --- INVENTORY -------- Light Ion Engine Light Ion Engine Light Treads Aluminum Leg Aluminum Leg Wheel Medium Storage Unit Medium Storage Unit Large Storage Unit EM Pulse Gun Grenade Launcher [Rating: 8] Favorites ----------- Power Ion Engine Engine Ion Engine Propulsion Light Treads Treads Light Treads Leg Aluminum Leg Wheel Wheel Utility Large Storage Unit Device Heat Sink Storage Large Storage Unit Processor Targeting Computer Protection Utility Shielding Weapon Small Laser Energy Gun Small Laser Ballistic Gun Light Assault Rifle Launcher Grenade Launcher Build | -11 -10 -10 ------- Run | Yrd Mat Min Slots Evolved . | . . . Power . | . . . Propulsion . | . . . Utility . | . . . Weapon . | . . . Parts Attached 23 | 4 15 4 Power 3 | 1 2 . Engine 3 | 1 2 . Core . | . . . Reactor . | . . . Propulsion 7 | 2 3 2 Treads 2 | 1 1 . Leg 2 | . . 2 Wheel 3 | 1 2 . Hover . | . . . Flight . | . . . Utility 6 | 1 5 . Device 1 | . 1 . Storage 2 | 1 1 . Processor 2 | . 2 . Hackware . | . . . Protection 1 | . 1 . Artifact . | . . . Weapon 7 | . 5 2 Energy Gun 4 | . 2 2 Energy Cannon . | . . . Ballistic Gun 2 | . 2 . Ballistic Cannon . | . . . Launcher 1 | . 1 . Special Weapon . | . . . Impact Weapon . | . . . Slashing Weapon . | . . . Piercing Weapon . | . . . Special Melee Weapon . | . . . Unidentified Prototypes . | . . . Parts Lost 12 | . 3 9 Power 2 | . 1 1 Propulsion 5 | . 1 4 Utility . | . . . Weapon 5 | . 1 4 Highest Loss Streak 8 | . 2 8 To Critical Strikes . | . . . Average Backups 13 | 4 13 14 Power 1 | . 1 1 Propulsion 5 | 2 5 5 Utility 3 | . 3 4 Weapon 2 | 1 2 3 Tool/Special . | . . . Unused Backups 12 | . 3 9 Power 3 | . 2 1 Propulsion 4 | . . 4 Utility 3 | . . 3 Weapon 2 | . 1 1 Tool/Special . | . . . Average Slot Usage (%) 91 | . 88 98 Engine 13 | . 13 14 Treads 13 | . 13 12 Wheel 13 | . 13 12 Storage 14 | . 14 14 Processor 6 | . 3 14 Protection 2 | . 3 . Energy Gun 20 | . 19 25 Ballistic Gun 4 | . 6 . Peak Build Rating 8 | 4 8 8 Average Rating 7 | 2 7 7 On Entrance 4 | . 4 8 Naked Turns . | . . . Heaviest Build 29 | 10 29 29 Greatest Support 20 | 10 16 20 Greatest Overweight (x) 8 | . 8 8 Average Overweight (x) 1 | . 1 1 Largest Inventory Capacity 15 | 8 15 15 Average Capacity 14 | 7 14 15 Most Carried 15 | 8 15 15 Average Carried 13 | 5 13 14 Final Capacity 15 | 8 15 15 Final Carried 15 | 8 15 12 Class Distribution -------------------- 100% | Mutant Dominant Class ---------------- Mutant | -10/Materials Mutant | -10/Mines Resources | -11 -10 -10 ----------- Run | Yrd Mat Min Matter Collected 544 | 220 294 30 Remotely . | . . . Salvage Created 696 | . 527 169 Parts 43 | . 34 9 Haulers Intercepted 1 | . 1 . Recyclers Shooed 2 | . 1 1 Parts Field Recycled . | . . . Retrieved Matter . | . . . Parts Self-Destructed . | . . . Prevented . | . . . Kills | -11 -10 -10 ------- Run | Yrd Mat Min Combat Hostiles Destroyed 19 | . 10 9 Guns 15 | . 10 5 AOE 4 | . . 4 Classes Destroyed 8 | . 4 4 Tunneler 1 | . . 1 Hauler 1 | . 1 . Recycler 1 | . . 1 Operator 1 | . 1 . Watcher 3 | . 3 . Swarmer 6 | . . 6 Grunt 10 | . 10 . Assembled 3 | . . 3 Best Kill Streak 4 | . 4 3 Combat Bots Only 4 | . 4 3 Max Kills in Single Turn 2 | . 1 2 Gunslinging . | . . . Exploded 2 | . . 2 Melee . | . . . Uniques/NPCs Destroyed . | . . . Combat | -11 -10 -10 -------- Run | Yrd Mat Min Hostile Shots Fired 110 | . 67 43 Missed 31 | . 23 8 Hits 79 | . 44 35 Melee 2 | . . 2 Projectile 77 | . 44 33 AOE 9 | . . 9 Critical Strikes 2 | . 2 . Damage Taken 1282 | . 518 764 Core 260 | . 51 209 Absorbed by Shields . | . . . Redirected to Shielding 3 | . 3 . Core Remaining (%) 100 | 100 . . Volleys Fired 89 | . 71 18 Largest 2 | . 2 2 Hottest 80 | . 80 80 Shots Fired 171 | . 140 31 Gun 167 | . 140 27 Cannon . | . . . Launcher 4 | . . 4 Special . | . . . Kinetic 37 | . 37 . Thermal 130 | . 103 27 Explosive 4 | . . 4 Electromagnetic . | . . . Robot Hit Streak 10 | . 10 4 Robot Miss Streak 5 | . 5 3 Penetration Max . | . . . Secondary Targets 2 | . 1 1 Max Gunslinging Chain 1 | . 1 1 Shots Hit Robots 112 | . 94 18 Core Hits 47 | . 32 15 Critical Kills . | . . . Critical Parts Destroyed . | . . . Critical Strikes . | . . . Melee Attacks . | . . . Impact . | . . . Slashing . | . . . Piercing . | . . . Sneak Attacks . | . . . Combat Hostiles . | . . . Follow-up Attacks . | . . . Damage Inflicted 1544 | . 1027 517 Guns 1203 | . 1027 176 Cannons . | . . . Explosions 341 | . . 341 Melee . | . . . Ramming . | . . . Kinetic 242 | . 242 . Thermal 961 | . 785 176 Explosive 341 | . . 341 Electromagnetic . | . . . Impact . | . . . Slashing . | . . . Piercing . | . . . Highest Corruption . | . . . Average Corruption . | . . . Corruption Purged . | . . . Corruption Blocked . | . . . Overload Shots . | . . . Overflow Damage 42 | . . 42 Projectiles . | . . . Explosions 42 | . . 42 Melee . | . . . Knockbacks . | . . . Impact . | . . . Kinetic . | . . . Secondary . | . . . Self-Inflicted Damage 88 | . . 88 Shots 3 | . . 3 Rammed . | . . . Targets Rammed . | . . . Kicked . | . . . Crushed . | . . . Highest Temperature 168 | . 168 88 Average Temperature 47 | . 50 31 Received Heat Transfer 336 | . 336 . Siege Activations . | . . . Martial Activations . | . . . Shielding Activations . | . . . Robots Disrupted . | . . . Combat Hostiles . | . . . Robots Corrupted . | . . . Combat Hostiles . | . . . Parts Fried . | . . . Impact Corruptions . | . . . Robots Melted . | . . . Combat Hostiles . | . . . Parts Melted 2 | . 1 1 Heat Transferred 2150 | . 1750 400 Parts Sabotaged . | . . . Parts Stolen . | . . . Parts Stripped . | . . . Power Chain Reactions . | . . . Alert | -11 -10 -10 ------- Run | Yrd Mat Min Maximum Alert Level . | . . . Low Security (%) 100 | 100 100 100 Level 1 . | . . . Level 2 . | . . . Level 3 . | . . . Level 4 . | . . . Level 5 . | . . . High Security . | . . . Max Security . | . . . Peak Influence 144 | . 80 144 Initial 28 | . . 28 Average 47 | . 34 99 Influence Increases 529 | . 350 179 Destroy 0b10 Robot/C 320 | . 200 120 Destroy 0b10 Robot/NC 35 | . 25 10 Destroy Leader 78 | . 58 20 Successful Hack 6 | . 6 . Destroy Structure 30 | . 1 29 Lose Combat Pursuer 60 | . 60 . Influence Decreases 529 | . 275 254 Entered New Map 47 | . . 47 Time Decay 385 | . 265 120 Lost Part 97 | . 10 87 Squads Dispatched 5 | . 5 . Investigation 3 | . 3 . Extermination . | . . . Reinforcement 2 | . 2 . Assault . | . . . Garrison . | . . . Intercept . | . . . Searches Triggered . | . . . Construction Impeded . | . . . Haulers Reinforced . | . . . Active Scanning Responses . | . . . Cargo Convoy Interrupts . | . . . Stealth | -11 -10 -10 --------- Run | Yrd Mat Min Distress Signals 2 | . 2 . Communications Jammed . | . . . Distress Signals . | . . . Times Spotted 33 | . 20 13 Peak Tracking Total 17 | . 5 17 Tactical Retreats 3 | . 3 . Traps | -11 -10 -10 ------- Run | Yrd Mat Min Traps Triggered 7 | . 7 . Indirectly . | . . . Trap Hack Attempts . | . . . Triggered . | . . . Disarmed . | . . . Reprogrammed . | . . . Reused . | . . . Traps Extracted . | . . . Installed . | . . . Triggered . | . . . Machines | -11 -10 -10 ---------- Run | Yrd Mat Min Machines Disabled . | . . . Max in Single Turn . | . . . Machines Repaired . | . . . Machines Dismantled . | . . . Machines Sabotaged . | . . . Overloaded Fab Kills . | . . . Hacking | -11 -10 -10 --------- Run | Yrd Mat Min Machines Accessed 3 | . 3 . Terminals 3 | . 3 . Fabricators . | . . . Repair Stations . | . . . Recycling Units . | . . . Scanalyzers . | . . . Garrison Access . | . . . Total Hacks 4 | . 4 . Successful 1 | . 1 . Failed 3 | . 3 . Catastrophic 2 | . 2 . Database Lockouts . | . . . Manual 3 | . 3 . Terminals 4 | . 4 . Fabricators . | . . . Repair Stations . | . . . Recycling Units . | . . . Scanalyzers . | . . . Garrison Access . | . . . Terminal Hacks 1 | . 1 . Robot Analysis 1 | . 1 . Fabricator Hacks . | . . . Repair Station Hacks . | . . . Recycling Unit Hacks . | . . . Scanalyzer . | . . . Garrison Access Hacks . | . . . Unauthorized Hacks . | . . . Terminals . | . . . Fabricators . | . . . Repair Stations . | . . . Recycling Units . | . . . Scanalyzers . | . . . Garrison Access . | . . . Data Cores Recovered . | . . . Used . | . . . Hacking Detections 3 | . 3 . Full Trace Events . | . . . Feedback Events . | . . . Feedback Blocked . | . . . Robot Schematics Acquired . | . . . Robots Built . | . . . Authchips . | . . . Time . | . . . Total Robot Build Rating . | . . . Part Schematics Acquired . | . . . Parts Built . | . . . Authchips . | . . . Time . | . . . Total Part Build Rating . | . . . Parts Repaired . | . . . Time . | . . . Parts Recycled . | . . . Recycled Matter . | . . . Retrieved Matter . | . . . Retrieved Components . | . . . Parts Scanalyzed . | . . . Part Schematics Acquired . | . . . Parts Damaged . | . . . Bothacking | -11 -10 -10 ------------ Run | Yrd Mat Min Used RIF Installer . | . . . Robots Hacked . | . . . Non-combat . | . . . Combat . | . . . Robot Hacks Applied . | . . . Relay Couplers Released . | . . . Fabnet Peak Effective % . | . . . Robots Rewired . | . . . Allies Hacked . | . . . Hacks Repelled . | . . . Allies | -11 -10 -10 -------- Run | Yrd Mat Min Total Allies . | . . . Largest Group . | . . . Highest-Rated Group . | . . . Highest-Rated Ally . | . . . Total Orders . | . . . Ally Attacks . | . . . Total Damage . | . . . Kills . | . . . Allies Corrupted . | . . . Allies Melted . | . . . Intel | -11 -10 -10 ------- Run | Yrd Mat Min Active Infowar (turns) . | . . . Robot Analysis Total 1 | . 1 . Derelict Logs Recovered . | . . . Drone Launches . | . . . Drone Recoveries . | . . . Exploration | -11 -10 -10 ------------- Run | Yrd Mat Min Turns Passed 1147 | 45 851 251 Spaces Moved 681 | 39 485 157 Core 15 | 7 7 1 Treads . | . . . Legs 9 | . . 9 Wheels 657 | 32 478 147 Hover . | . . . Flight . | . . . Fastest Speed 50 | 50 80 115 Average Speed 112 | 74 112 122 Slowest Speed 450 | 80 450 450 Overloaded Moves . | . . . Propulsion Burnouts . | . . . Robots Hopped . | . . . Potential Cave-ins . | . . . Cave-ins Triggered . | . . . Exploration Rate (%) 38 | 3 73 38 Regions Visited 2 Branch Regions 1 Pre-discovered Areas . | . . . Known Exits Taken . | . . . Unknown Exits Taken 2 | 1 1 . Scrap Searched 1 | . . 1 Spaces Dug . | . . . Terrain Destroyed 37 | . . 37 Melee . | . . . Projectile . | . . . AOE 37 | . . 37 Terrain Rammed . | . . . Walls Destroyed . | . . . Machines Disabled . | . . . Actions | -11 -10 -10 --------- Run | Yrd Mat Min Total 897 | 54 657 186 Wait 37 | . 33 4 Move 679 | 38 484 157 Hop . | . . . Pick Up 47 | 12 34 1 Fast Attach . | . . . Attach 26 | 4 18 4 Detach . | . . . Swap 6 | . 4 2 Drop 13 | . 13 . Fire 89 | . 71 18 Melee . | . . . Ram . | . . . Kick . | . . . Crush . | . . . Escape Stasis . | . . . Rewire . | . . . Trap . | . . . Miscellaneous . | . . . Route ------- -11/Scrapyard -10/Materials (discovered 5 exits: [*Mat x2] / [*Min x2] / [*Sub]) -10/Mines History --------- Turn | Location | Event 17 | -11/Scrapyard | Discovered new exit (range 15) 46 | -11/Scrapyard | Entered Materials 47 | -10/Materials | Met a group of wandering Federalists 160 | -10/Materials | Discovered new exit (range 9) 305 | -10/Materials | Build established: Mutant 477 | -10/Materials | Discovered new exit (range 10) 504 | -10/Materials | Discovered new exit (range 13) 660 | -10/Materials | Discovered new exit (range 4) 753 | -10/Materials | Discovered new exit (range 13) 897 | -10/Materials | Entered Mines 1100 | -10/Mines | Assembled infested the area 1124 | -10/Mines | Core integrity fell below 50% 1144 | -10/Mines | Core integrity fell below 20% 1148 | -10/Mines | Destroyed by D-53 Grenadier with Mini Grenade Launcher Last Messages --------------- 01118_ as-03243 destroyed. 01119_ Lgt. Treads destroyed. 01121_ The unstable cave ceiling collapses. 01122_ Destroyed Asb. Hover Unit. 01122_ Grenade Launcher destroyed. 01122_ Destroyed Grenade Launcher. 01124_ The unstable cave ceiling collapses. 01125_ as-13990 destroyed. 01131_ as-08312 destroyed. 01132_ The unstable cave ceiling collapses. 01132_ as-04032 destroyed. 01137_ The unstable cave ceiling collapses. 01140_ Aluminum Leg destroyed. 01140_ Sml. Laser destroyed. 01141_ The unstable cave ceiling collapses. 01145_ K-01 Serf collects debris. 01146_ The unstable cave ceiling collapses. 01146_ Aluminum Leg destroyed. 01147_ Ion Engine destroyed. 01148_ Sml. Laser destroyed. Map ----- +----------------------------------------------------+ | ##???????????????????????????????????????? | | #???????????????????????????????????????? | | ## #???????????????????????????????????????? | | ### ##???????????????????????????????????????? | | ### ##????????????????????????????????????????? | | ## ##?????????????????????????????????????????? | | ## ##?????????????????????????????????????????? | | #### #?????????????????????????????????????????? | | #??# ##????????????????????????????????????????? | | ??## #????????????????????????????????????????? | | ??# #????????????????????????????????????????? | | ??# #????????????????????#???????????????????? | | ??# ##???????????????????? ??????????????????? | | ?## ##????????????????????? ??????????????????? | | ?# #????????????????????? #??????????????????? | | ?# ##????????????????????? #??????????????????? | | ?# #?????????????????????? #??????????????????? | | ## ##???????????????????? ##?????????????????? | | # ##??????????????????? ##????????????????? | | ##?????????????????? ##???????????????? | | """" ########??????????# #???????????????? | | """" #?????##### #######?????????? | | """" ##### #????## ?????????? | | ##??## ###### k ??????????? | | # ##???# #???????????????? | | # ##????# t @ #????????????????? | | ##?????# ##### ####????????????????? | | ######## #???# #???????????????????? | | #??# ##???????????????????? | | #??## ####?????????????????? | | ######## #???# # ###???????????????? | | #??????# #???# # #???????????????? | | #??????? ????## dd #???????????????? | | # #??????? ?????### # #### ?????? | | ## #??????? ???????## # # ?????? | | ### #???????#????????## " ?????? | | #?# #?????????????????# # ?????? | | ### #???????#????????? # ?????? | | ## #### ##????????# ## ????????? | | %! #???????? # ## ####???#????????? | | ### ? ###? #???????????????? | | #######???? ? ?????#???????????????? | | #???????????? ?? ?????????????????????? | | #???###????????###### ? ?????????????????????? | | #???# ##???????????????## #????????????????????? | | #???# #?????????????????# ?????????????????????? | | #???# ##????????????????? ?????????????????????? | | #???# ##???????????????? ?????????????????????? | | #??## ###?????????????????????????????????????? | | #?## #?????????????????????????????????????? | +----------------------------------------------------+ Best States ------------- Heat Dissipation 35 Energy Generation 10 Energy Capacity 250 Matter Stores 300 Matter Capacity 300 Sight Range 16 Terrain Scan Density 10 Utility Shielding 33 Evasion (%) 50 Targeting Accuracy 5 Item Schematics ----------------- None Robot Schematics ------------------ None Fabricated ------------ Nothing Repaired ---------- Nothing Alien Tech Used ----------------- None Achievements -------------- None Challenges ------------ None Game ------ Seed TiamatThrowingVibroblade Manual? 0 Play Time 00:17:21 Cumulative 132.3 hours Start 2025.05.10 @ 17:18:55 End 2025.05.10 @ 17:36:59 Sessions 1 Manual Loads 0 Difficulty Rogue Special Mode None Game No. 127 Rogue 127 Adventurer 0 Explorer 0 Win Type - Total 1 Types 1/0/0/0/0/0/0/0/0/0 Lore% 26 Gallery% 42 Achievement% 37 Wizard Run 0 Options --------- Layout 1 ASCII 0 Keyboard 0 Movement Numpad Keybinds 0 Fullscreen 1 Font 24/Smallcaps Map View 50x35 Zoom Use 0% Tactical HUD 1 Map Filters NONE Filters NONE Steam 1 RUN: 09def075-b398-4e21-864e-e74dcef15fce